{"text_format":"1","workbook":"xlsx","n_sheets":2,"sheets":["Prüfliste","PrüfungsErgebnis"],"not_rendered":{"charts":0,"images":14,"macros":1,"external_links":0,"defined_names":3,"comments":0,"pivot_tables":0},"unopened":[],"bounds":{"document_bytes":16777216,"sheet_cells":100000,"rows_first":2000,"rows_last":500,"rows_between":2000,"halvings":0,"cell_chars":16384,"cell_head_chars":4096},"cells_cut":0,"cells_raw":0,"read":"whole","date_system":"1900"}

{"sheet":"Prüfliste","index":0,"n_rows":53,"n_cols":10,"rows_kept":53,"cut":false,"hidden":false,"merged":[[49,0,49,6],[50,0,50,6],[51,0,51,6],[52,0,52,6],[48,0,48,6],[44,0,44,6],[45,0,45,6],[46,0,46,6],[47,0,47,6],[3,1,3,4],[14,2,14,4],[10,2,10,4],[13,2,13,4],[12,5,17,6],[11,2,11,4],[12,2,12,4]]}
[null,null,null,null,null,null,null,null,{"$f":"Zeilenhoehe(J1)","v":{"$error":"#NAME?"}},"C:\\Users\\brt\\Desktop\\Prüfliste\\"]
[null,"Planungshilfe ",null,null,null,null,null,null,{"$f":"Zeilenhoehe(J2)","v":{"$error":"#NAME?"}}]
[null,"Stand 2025-02-11",null,null,null,null,null,null,{"$f":"Zeilenhoehe(J3)","v":{"$error":"#NAME?"}}]
[null,"Alle Angaben in dieser Planungshilfe müssen (bereits zum Vorabzug) in den Plänen eingearbeitet sein und werden durch die Planprüfungsabteilung geprüft. Unvollständigkeiten, bzw. fehlende Angaben, werden in dieser Liste vermerkt. Daraus resultiert die Planprüfungsgebühr. Dieses Formular kann, muss aber nicht vom planenden Architekturbüro an geschickt werden.",null,null,null,null,null,null,{"$f":"Zeilenhoehe(J4)","v":{"$error":"#NAME?"}}]
[null,null,null,null,null,null,null,null,{"$f":"Zeilenhoehe(J5)","v":{"$error":"#NAME?"}}]
[null,"Auftragsnummer:",null,null,12546,null,null,null,{"$error":"#NAME?"}]
[null,"Name Bauherrschaft:",null,null,"Muster",null,null,null,{"$error":"#NAME?"}]
[null,null,null,null,null,null,null,null,{"$error":"#NAME?"}]
[null,"Notwendige Unterlagen zur Prüfung des Bauvorhabens",null,null,null,null,null,null,{"$f":"Zeilenhoehe(J9)","v":{"$error":"#NAME?"}}]
[null,null,null,null,null,null,null,null,{"$error":"#NAME?"}]
[null,"O"," = Diese Spalte dient dem Architekten zum Abhaken der notwendigen Infos (Doppel Klick linke Maustaste)"]
[null,"Ï"," = bei diesem BV nicht zutreffend",null,null,null,null,null,{"$error":"#NAME?"}]
[null,"ü"," = zutreffend/erforderlich und in den Plänen berücksichtigt",null,null,": Fehlende Infos",null,null,{"$error":"#NAME?"}]
[null,"?"," = Link zum entsprechenden Dokument auf ",null,null,null,null,null,{"$error":"#NAME?"}]
[null,"1.1"," = Fehlende Info Architekt: Wird von der Planprüfungsabteilung ausgefüllt und bildet das Planprüfungsergebnis",null,null,null,null,null,{"$error":"#NAME?"}]
[null,null,null,null,null,null,null,null,{"$error":"#NAME?"}]
[null,"1. Vorabzug",null,null,null,null,null,null,{"$error":"#NAME?"}]
[null,null,null,null,null,null,null,null,{"$error":"#NAME?"}]
[null,"?",null,"per E-Mail an (email) schicken (Dateibenennung gemäß Auftragsabwicklung)",null,null,null,null,{"$error":"#NAME?"}]
[null,"?","1.1","Checkliste Baurecht",null,0,"1.1",null,{"$error":"#NAME?"}]
[null,null,"1.2","vollständiger Plansatz als PDF-Datei (DIN A3, 1:100)",null,0,"1.2",null,{"$error":"#NAME?"}]
[null,null,"1.3","Bodengutachten - falls schon vorhanden, sonst bitte schnellstmöglich nachreichen, sobald ",null,0,"1.3",null,{"$error":"#NAME?"}]
[null,null,null,"vorhanden, spätestens zur Mehrfertigung (Änderungen können sich noch ergeben)",null,null,null,null,{"$error":"#NAME?"}]
[null,null,null,"(bei Gründung/Bodenplatte/Keller in Eigenleistung, verlangt SchwörerHaus kein Bodengutachten)",null,null,null,null,{"$error":"#NAME?"}]
[null,null,"1.4","Lageplan-Vorabzug",null,0,"1.4",null,{"$error":"#NAME?"}]
[null,"?","1.5","Anfahrtsskizze - bereits zum Vorabzug notwendig, wenn Zufahrtsprüfung erforderlich.",null,0,"1.5",null,{"$error":"#NAME?"}]
[null,null,null,"(In diesem Fall bitte auch Formular \"Gründe Zufahrtsprüfung\" mit einreichen)",null,null,null,null,{"$error":"#NAME?"}]
[null,null,null,"wenn keine Prüfung, dann spätestens zur Mehrfertigung",null,null,null,null,{"$error":"#NAME?"}]
[null,"?","1.6","Ergebnisblatt Energieeinsparnachweis (Ausland)",null,0,"1.6",null,{"$error":"#NAME?"}]
[null,"?","1.7","Nachweisblatt Sommerlicher Wärmeschutz (Deutschland)",null,0,"1.7",null,{"$error":"#NAME?"}]
[null,"?","1.8","Punktetabelle zur Beurteilung der Luftdichtigkeit bei Passivhäusern, Minergie A, besondere ",null,0,"1.8",null,{"$error":"#NAME?"}]
[null,null,null,"Anforderungen an die Luftdichtheit (z.B. im B-Plan), …",null,null,null,null,{"$error":"#NAME?"}]
[null,"?","1.9","Aufmaß Bestandsgebäude schnellstmöglich, wenn Anbau an Bestand oder an bestehender",null,0,"1.9",null,{"$error":"#NAME?"}]
[null,null,null,"Grenzbebauung(z.B. Doppel-/Reihenhaus), Nachbargebäude im Plan darstellen und vermaßen",null,null,null,null,{"$error":"#NAME?"}]
[null,"?","1.10","Nah-/Fernwärme: Alle von Schwörer geforderten Angaben wurden beim Versorger eingeholt",null,0,"1.10",null,{"$error":"#NAME?"}]
[null,null,null,"und liegen bei",null,null,null,null,{"$error":"#NAME?"}]
[null,null,"1.11","Kanalplan - erdorderlich für Prüfung Entwässerung (wenn Infos zum Kanal im Lageplan enthalten",null,0,"1.11",null,{"$error":"#NAME?"}]
[null,null,null,"sind, muss kein separater Kanalplan eingereicht werden)",null,null,null,null,{"$error":"#NAME?"}]
[null,"?","1.12","Ist Außenlärm vorhanden, Gutachten oder B-Plan mitschicken (siehe Checkliste Baurecht Punkt 0.7)",null,0,"1.12",null,{"$error":"#NAME?"}]
[null,null,null,null,null,null,null,null,{"$error":"#NAME?"}]
[null,null,null,null,null,null,null,null,{"$f":"Zeilenhoehe(J41)","v":{"$error":"#NAME?"}}]
[null,null,null,null,null,null,null,null,{"$error":"#NAME?"}]
["Anmerkungen ",null,null,null,null,null,null,null,{"$error":"#NAME?"}]
[null,null,null,null,null,null,null,null,{"$error":"#NAME?"}]
[null,null,null,null,null,null,null,null,{"$error":"#NAME?"}]
[null,null,null,null,null,null,null,null,{"$error":"#NAME?"}]
[null,null,null,null,null,null,null,null,{"$f":"Zeilenhoehe(J47)","v":{"$error":"#NAME?"}}]
[null,null,null,null,null,null,null,null,{"$error":"#NAME?"}]
[null,null,null,null,null,null,null,null,{"$error":"#NAME?"}]
[null,null,null,null,null,null,null,null,{"$error":"#NAME?"}]
[null,null,null,null,null,null,null,null,{"$error":"#NAME?"}]
[null,null,null,null,null,null,null,null,{"$error":"#NAME?"}]
[null,null,null,null,null,null,null,null,{"$error":"#NAME?"}]

{"sheet":"PrüfungsErgebnis","index":1,"n_rows":40,"n_cols":10,"rows_kept":40,"cut":false,"hidden":false,"merged":[[21,1,21,2],[8,3,8,9],[7,3,7,4],[13,3,13,9],[3,1,3,9],[7,1,7,2],[8,1,8,2],[13,1,13,2],[15,1,15,2],[20,1,20,2],[5,1,5,5],[14,1,14,2],[14,3,14,9]]}
[null,null,null,null,null,null,"120"]
[null,"Planungshilfe für Schwörer-Häuser"]
[null,"Stand 2024-01-23"]
[null,"Alle Angaben in dieser Planungshilfe müssen (bereits zum Vorabzug) in den Plänen eingearbeitet sein und werden durch die Planprüfungsabteilung geprüft. Unvollständigkeiten, bzw. fehlende Angaben, werden in dieser Liste vermerkt. Daraus resultiert die Planprüfungsgebühr. Dieses Formular kann, muss aber nicht vom planenden Architekturbüro an SchwörerHaus geschickt werden."]
[]
[null,"Prüfungsergebnis"]
[]
[null,"Auftragsnummer",null,{"$f":"IF(Prüfliste!E6=\"\",\"\",Prüfliste!E6)","v":12546}]
[null,"Name Bauherrschaft",null,{"$f":"IF(Prüfliste!E7=\"\",\"\",Prüfliste!E7)","v":"Muster"}]
[]
[null,"Planprüfungsergebnis: ",null,null,{"$f":"COUNTIF(Prüfliste!F19:F40,1)","v":0},{"$f":"IF(E11=0,\"keine Fehler\",\"Fehler\")","v":"keine Fehler"}]
[null,"(wird automatisch berechnet)"]
[]
[null,"Fehlende Infos: ",null,{"$f":"IF(ISNA(SVerweisPlus(1,Prüfliste!F20:G40,2,\", \")),\"\",SVerweisPlus(1,Prüfliste!F20:G40,2,\", \"))","v":""}]
[null,"berücksichtigt\nmit Fehlern"]
[null,"Rechnungsbetrag: ",null,null,{"$f":"IF(E11<15,D22,IF(AND(E11>=15,E11<=22),E22,IF(AND(E11>=23,E11<=30),F22,IF(AND(E11>=31,E11<=38),G22,IF(AND(E11>=39,E11<=46),H22,IF(AND(E11>=47,E11<=54),I22,IF(E11>=55,J22,\"\")))))))","v":0}]
[]
[null,"Erläuterung zum Rechnungsbetrag: "]
[]
[null,null,null,1,2,3,4,5,6,7]
[null,"Fehlende Infos:",null,"0 - 14","15 - 22","23 - 30","31 - 38","39 - 46","47 - 54","ab 55"]
[null,"Rechnungsbetrag:",null,0,200,325,450,575,700,1000]
[]
[]
[]
[]
[]
[]
[]
[]
[]
[]
[]
[]
[]
[null,100]
[null,110]
[null,120]
[null,130]
[null,150]